[Event "Titled Tuesday Blitz August 23 Late 2022"]
[White "Carlsen, Magnus"]
[Black "Bortnyk, Olexandr"]
[WhiteFideId "1503014"]
[BlackFideId "14120828"]
[WhiteElo "2830"]
[BlackElo "2723"]
[Result "0-1"]
[Round "09"]
[TimeControl "180+1"]
[Date "2022.08.23"]
[WhiteClock "0:00:07"]
[BlackClock "0:00:02"]

1. d4 {[%clk 0:02:59]}  d6 {[%clk 0:03:00]} 2. e4 {[%clk 0:02:58]}  Nf6 {[%clk 0:03:00]} 3. Nc3 {[%clk 0:02:51]}  e5 {[%clk 0:03:00]} 4. Nf3 {[%clk 0:02:50]}  Nbd7 {[%clk 0:03:00]} 5. Rg1 {[%clk 0:02:49]}  Be7 {[%clk 0:02:55]} 6. g4 {[%clk 0:02:46]}  h6 {[%clk 0:02:55]} 7. Be3 {[%clk 0:02:29]}  c6 {[%clk 0:02:53]} 8. a4 {[%clk 0:02:29]}  a5 {[%clk 0:02:42]} 9. g5 {[%clk 0:02:21]}  hxg5 {[%clk 0:02:37]} 10. Nxg5 {[%clk 0:02:22]}  exd4 {[%clk 0:02:10]} 11. Qxd4 {[%clk 0:02:20]}  Ne5 {[%clk 0:01:52]} 12. f4 {[%clk 0:02:17]}  Nfg4 {[%clk 0:01:49]} 13. O-O-O {[%clk 0:01:36]}  Bxg5 {[%clk 0:01:44]} 14. fxg5 {[%clk 0:01:36]}  Nxe3 {[%clk 0:01:31]} 15. Qxe3 {[%clk 0:01:37]}  Rxh2 {[%clk 0:01:31]} 16. Be2 {[%clk 0:01:29]}  Be6 {[%clk 0:01:22]} 17. Qg3 {[%clk 0:01:14]}  Rh3 {[%clk 0:01:19]} 18. Qf2 {[%clk 0:01:05]}  Qc7 {[%clk 0:01:13]} 19. g6 {[%clk 0:01:05]}  f6 {[%clk 0:00:59]} 20. Rh1 {[%clk 0:00:53]}  Rxh1 {[%clk 0:00:52]} 21. Rxh1 {[%clk 0:00:54]}  Ke7 {[%clk 0:00:40]} 22. Rh7 {[%clk 0:00:49]}  Rg8 {[%clk 0:00:40]} 23. Nd1 {[%clk 0:00:44]}  Nxg6 {[%clk 0:00:35]} 24. Qg3 {[%clk 0:00:45]}  Bf7 {[%clk 0:00:33]} 25. Ne3 {[%clk 0:00:37]}  Kd8 {[%clk 0:00:19]} 26. Bh5 {[%clk 0:00:25]}  Ne5 {[%clk 0:00:15]} 27. Rxg7 {[%clk 0:00:23]}  Rxg7 {[%clk 0:00:16]} 28. Qxg7 {[%clk 0:00:23]}  Bxh5 {[%clk 0:00:16]} 29. Qf8+ {[%clk 0:00:14]}  Be8 {[%clk 0:00:16]} 30. Nf5 {[%clk 0:00:14]}  Qd7 {[%clk 0:00:13]} 31. Nxd6 {[%clk 0:00:14]}  Qe7 {[%clk 0:00:12]} 32. Qxe7+ {[%clk 0:00:14]}  Kxe7 {[%clk 0:00:12]} 33. Nxb7 {[%clk 0:00:15]}  Nc4 {[%clk 0:00:10]} 34. b3 {[%clk 0:00:14]}  Nd6 {[%clk 0:00:09]} 35. Nxa5 {[%clk 0:00:15]}  Nxe4 {[%clk 0:00:08]} 36. Kd1 {[%clk 0:00:15]}  Kd6 {[%clk 0:00:07]} 37. Ke2 {[%clk 0:00:15]}  Kc7 {[%clk 0:00:07]} 38. Ke3 {[%clk 0:00:16]}  Nc5 {[%clk 0:00:02]} 39. Nc4 {[%clk 0:00:13]}  Bg6 {[%clk 0:00:02]} 40. Kd2 {[%clk 0:00:14]}  Ne4+ {[%clk 0:00:03]} 41. Kd1 {[%clk 0:00:13]}  Nd6 {[%clk 0:00:04]} 42. Ne3 {[%clk 0:00:13]}  f5 {[%clk 0:00:04]} 43. Ng2 {[%clk 0:00:13]}  Bh5+ {[%clk 0:00:03]} 44. Kd2 {[%clk 0:00:13]}  Bf3 {[%clk 0:00:03]} 45. Nf4 {[%clk 0:00:13]}  Be4 {[%clk 0:00:04]} 46. c4 {[%clk 0:00:13]}  Nb7 {[%clk 0:00:03]} 47. b4 {[%clk 0:00:13]}  c5 {[%clk 0:00:03]} 48. Kc3 {[%clk 0:00:13]}  Kd6 {[%clk 0:00:02]} 49. a5 {[%clk 0:00:13]}  cxb4+ {[%clk 0:00:02]} 50. Kxb4 {[%clk 0:00:14]}  Nc5 {[%clk 0:00:03]} 51. Kb5 {[%clk 0:00:14]}  Ne6 {[%clk 0:00:03]} 52. Nh3 {[%clk 0:00:12]}  f4 {[%clk 0:00:03]} 53. Nf2 {[%clk 0:00:12]}  Bc6+ {[%clk 0:00:02]} 54. Kb4 {[%clk 0:00:13]}  Nc5 {[%clk 0:00:02]} 55. Nh3 {[%clk 0:00:12]}  f3 {[%clk 0:00:02]} 56. Kc3 {[%clk 0:00:12]}  Ke5 {[%clk 0:00:01]} 57. Kd2 {[%clk 0:00:12]}  Kd4 {[%clk 0:00:02]} 58. a6 {[%clk 0:00:10]}  Nxa6 {[%clk 0:00:02]} 59. Nf4 {[%clk 0:00:09]}  Nc5 {[%clk 0:00:02]} 60. Nh3 {[%clk 0:00:08]}  Ne4+ {[%clk 0:00:02]} 61. Ke1 {[%clk 0:00:08]}  Ke3 {[%clk 0:00:03]} 62. c5 {[%clk 0:00:09]}  Bb5 {[%clk 0:00:02]} 63. Kd1 {[%clk 0:00:07]}  Nf2+ {[%clk 0:00:02]} 0-1


[Site "https://www.chess.com"]

[Event "Titled Tuesday Blitz August 23 Late 2022"]
[White "Dubov, Daniil"]
[Black "Bok, Benjamin"]
[WhiteFideId "24126055"]
[BlackFideId "1017063"]
[WhiteElo "2791"]
[BlackElo "2658"]
[Result "1-0"]
[Round "09"]
[TimeControl "180+1"]
[Date "2022.08.23"]
[WhiteClock "0:00:04"]
[BlackClock "0:00:01"]

1. d4 {[%clk 0:03:00]}  Nf6 {[%clk 0:02:59]} 2. Nf3 {[%clk 0:03:01]}  d5 {[%clk 0:02:59]} 3. c4 {[%clk 0:03:01]}  e6 {[%clk 0:02:58]} 4. g3 {[%clk 0:03:02]}  Bb4+ {[%clk 0:02:56]} 5. Nbd2 {[%clk 0:03:00]}  dxc4 {[%clk 0:02:48]} 6. Bg2 {[%clk 0:03:00]}  b5 {[%clk 0:02:47]} 7. Ne5 {[%clk 0:02:57]}  Nd5 {[%clk 0:02:35]} 8. O-O {[%clk 0:02:53]}  O-O {[%clk 0:02:31]} 9. b3 {[%clk 0:02:31]}  Bb7 {[%clk 0:02:19]} 10. Qc2 {[%clk 0:02:25]}  cxb3 {[%clk 0:02:03]} 11. Nxb3 {[%clk 0:02:22]}  Be7 {[%clk 0:01:47]} 12. Bd2 {[%clk 0:01:59]}  a6 {[%clk 0:00:50]} 13. Na5 {[%clk 0:01:53]}  Ra7 {[%clk 0:00:47]} 14. Nxb7 {[%clk 0:01:47]}  Rxb7 {[%clk 0:00:48]} 15. Rfc1 {[%clk 0:01:29]}  c5 {[%clk 0:00:34]} 16. dxc5 {[%clk 0:01:18]}  Qc7 {[%clk 0:00:35]} 17. c6 {[%clk 0:00:50]}  Ra7 {[%clk 0:00:35]} 18. Nd3 {[%clk 0:00:40]}  Rc8 {[%clk 0:00:29]} 19. Bxd5 {[%clk 0:00:17]}  exd5 {[%clk 0:00:30]} 20. Be3 {[%clk 0:00:17]}  Ra8 {[%clk 0:00:28]} 21. Nf4 {[%clk 0:00:17]}  d4 {[%clk 0:00:07]} 22. Bxd4 {[%clk 0:00:12]}  Nxc6 {[%clk 0:00:07]} 23. Qe4 {[%clk 0:00:11]}  Qd7 {[%clk 0:00:07]} 24. Bb2 {[%clk 0:00:11]}  Bf8 {[%clk 0:00:06]} 25. Nh5 {[%clk 0:00:09]}  Qe6 {[%clk 0:00:05]} 26. Qf4 {[%clk 0:00:06]}  Nb4 {[%clk 0:00:03]} 27. Rxc8 {[%clk 0:00:04]}  Rxc8 {[%clk 0:00:04]} 28. Nxg7 {[%clk 0:00:04]}  Bxg7 {[%clk 0:00:03]} 29. Bxg7 {[%clk 0:00:05]}  Kxg7 {[%clk 0:00:03]} 30. Qxb4 {[%clk 0:00:05]}  Qxe2 {[%clk 0:00:03]} 31. Qd4+ {[%clk 0:00:05]}  Kg8 {[%clk 0:00:03]} 32. Qf6 {[%clk 0:00:05]}  Qe6 {[%clk 0:00:01]} 33. Qf4 {[%clk 0:00:05]}  Rc4 {[%clk 0:00:01]} 34. Qg5+ {[%clk 0:00:04]}  Kf8 {[%clk 0:00:02]} 35. Rd1 {[%clk 0:00:03]}  Rc8 {[%clk 0:00:01]} 36. Qd2 {[%clk 0:00:04]}  h6 {[%clk 0:00:02]} 37. Qf4 {[%clk 0:00:04]}  Kg7 {[%clk 0:00:02]} 38. Rd6 {[%clk 0:00:04]}  Rc1+ {[%clk 0:00:02]} 39. Kg2 {[%clk 0:00:04]}  Qe1 {[%clk 0:00:01]} 40. Qxh6+ {[%clk 0:00:04]} 1-0


[Site "https://www.chess.com"]

[Event "Titled Tuesday Blitz August 23 Late 2022"]
[White "Godzwon, Iwo"]
[Black "Djordjevic, Vuk"]
[WhiteFideId "21802483"]
[BlackFideId "902098"]
[WhiteElo "2201"]
[BlackElo "2456"]
[Result "0-1"]
[Round "09"]
[TimeControl "180+1"]
[Date "2022.08.23"]
[WhiteClock "0:01:40"]
[BlackClock "0:01:22"]

1. e4 {[%clk 0:03:00]}  d5 {[%clk 0:02:59]} 2. exd5 {[%clk 0:02:58]}  Qxd5 {[%clk 0:03:00]} 3. Nc3 {[%clk 0:02:58]}  Qd6 {[%clk 0:03:01]} 4. d4 {[%clk 0:02:59]}  Nf6 {[%clk 0:03:01]} 5. Nf3 {[%clk 0:02:59]}  c6 {[%clk 0:03:02]} 6. Bc4 {[%clk 0:02:56]}  Bg4 {[%clk 0:03:02]} 7. Be3 {[%clk 0:02:50]}  e6 {[%clk 0:03:02]} 8. h3 {[%clk 0:02:50]}  Bh5 {[%clk 0:02:56]} 9. g4 {[%clk 0:02:50]}  Bg6 {[%clk 0:02:56]} 10. Ne5 {[%clk 0:02:50]}  Nbd7 {[%clk 0:02:54]} 11. f4 {[%clk 0:02:50]}  Ne4 {[%clk 0:02:50]} 12. Nxg6 {[%clk 0:02:16]}  Nxc3 {[%clk 0:02:48]} 13. bxc3 {[%clk 0:02:17]}  hxg6 {[%clk 0:02:47]} 14. Qf3 {[%clk 0:02:17]}  Nb6 {[%clk 0:01:50]} 15. Bd3 {[%clk 0:02:15]}  Nd5 {[%clk 0:01:34]} 16. Bd2 {[%clk 0:01:59]}  Qa3 {[%clk 0:01:33]} 17. f5 {[%clk 0:01:48]}  gxf5 {[%clk 0:01:25]} 18. gxf5 {[%clk 0:01:49]}  O-O-O {[%clk 0:01:22]} 19. fxe6 {[%clk 0:01:48]}  fxe6 {[%clk 0:01:22]} 20. O-O {[%clk 0:01:40]} 0-1


[Site "https://www.chess.com"]

[Event "Titled Tuesday Blitz August 23 Late 2022"]
[White "Hardaway, Brewington"]
[Black "Pulpan, Jakub"]
[WhiteFideId "30941849"]
[BlackFideId "302759"]
[WhiteElo "1813"]
[BlackElo "2451"]
[Result "0-1"]
[Round "09"]
[TimeControl "180+1"]
[Date "2022.08.23"]
[WhiteClock "0:02:10"]
[BlackClock "0:01:31"]

1. e4 {[%clk 0:03:00]}  e5 {[%clk 0:02:33]} 2. Nf3 {[%clk 0:03:00]}  Nc6 {[%clk 0:02:34]} 3. Bb5 {[%clk 0:03:01]}  Nf6 {[%clk 0:02:24]} 4. O-O {[%clk 0:02:58]}  Nxe4 {[%clk 0:02:22]} 5. d4 {[%clk 0:02:59]}  Nd6 {[%clk 0:02:23]} 6. dxe5 {[%clk 0:02:59]}  Nxb5 {[%clk 0:02:23]} 7. a4 {[%clk 0:03:00]}  Nxe5 {[%clk 0:02:23]} 8. Nd4 {[%clk 0:03:01]}  Nxd4 {[%clk 0:02:22]} 9. Qxd4 {[%clk 0:03:00]}  d6 {[%clk 0:02:08]} 10. f4 {[%clk 0:03:00]}  Nc6 {[%clk 0:02:07]} 11. Re1+ {[%clk 0:03:00]}  Be6 {[%clk 0:02:06]} 12. Qc3 {[%clk 0:02:59]}  Kd7 {[%clk 0:01:58]} 13. b4 {[%clk 0:02:59]}  Be7 {[%clk 0:01:58]} 14. Ra3 {[%clk 0:02:57]}  Bf6 {[%clk 0:01:57]} 15. Qd2 {[%clk 0:02:57]}  Re8 {[%clk 0:01:48]} 16. b5 {[%clk 0:02:47]}  Ne7 {[%clk 0:01:46]} 17. Nc3 {[%clk 0:02:44]}  Kc8 {[%clk 0:01:37]} 18. a5 {[%clk 0:02:43]}  a6 {[%clk 0:01:36]} 19. bxa6 {[%clk 0:02:35]}  Rxa6 {[%clk 0:01:36]} 20. Na4 {[%clk 0:02:15]}  Nc6 {[%clk 0:01:33]} 21. Rae3 {[%clk 0:02:12]}  Bd4 {[%clk 0:01:33]} 22. c3 {[%clk 0:02:09]}  Bxe3+ {[%clk 0:01:30]} 23. Rxe3 {[%clk 0:02:10]}  Rxa5 {[%clk 0:01:31]} 0-1


[Site "https://www.chess.com"]

[Event "Titled Tuesday Blitz August 23 Late 2022"]
[White "Jian, Alex"]
[Black "Korchmar, Vasiliy"]
[WhiteFideId "30901022"]
[BlackFideId "24131750"]
[WhiteElo "2095"]
[BlackElo "2370"]
[Result "0-1"]
[Round "09"]
[TimeControl "180+1"]
[Date "2022.08.23"]
[WhiteClock "0:00:01"]
[BlackClock "0:00:05"]

1. Nf3 {[%clk 0:02:49]}  d5 {[%clk 0:02:59]} 2. b3 {[%clk 0:02:49]}  Bf5 {[%clk 0:02:56]} 3. Bb2 {[%clk 0:02:49]}  e6 {[%clk 0:02:56]} 4. e3 {[%clk 0:02:49]}  Nf6 {[%clk 0:02:56]} 5. Be2 {[%clk 0:02:48]}  h6 {[%clk 0:02:56]} 6. O-O {[%clk 0:02:48]}  Bd6 {[%clk 0:02:54]} 7. c4 {[%clk 0:02:47]}  O-O {[%clk 0:02:52]} 8. Nc3 {[%clk 0:02:47]}  c6 {[%clk 0:02:51]} 9. d4 {[%clk 0:02:46]}  Nbd7 {[%clk 0:02:50]} 10. Bd3 {[%clk 0:02:46]}  Bg4 {[%clk 0:02:26]} 11. h3 {[%clk 0:02:45]}  Bh5 {[%clk 0:02:26]} 12. Be2 {[%clk 0:02:35]}  Ne4 {[%clk 0:02:22]} 13. Qc2 {[%clk 0:02:14]}  f5 {[%clk 0:02:21]} 14. Ne5 {[%clk 0:02:04]}  Bxe2 {[%clk 0:01:48]} 15. Nxe2 {[%clk 0:02:04]}  Nxe5 {[%clk 0:01:40]} 16. dxe5 {[%clk 0:02:04]}  Bc7 {[%clk 0:01:36]} 17. Nf4 {[%clk 0:01:56]}  Qe8 {[%clk 0:01:34]} 18. cxd5 {[%clk 0:01:45]}  exd5 {[%clk 0:01:31]} 19. Nxd5 {[%clk 0:01:42]}  Bxe5 {[%clk 0:01:30]} 20. Bxe5 {[%clk 0:01:38]}  Qxe5 {[%clk 0:01:31]} 21. Nf4 {[%clk 0:01:34]}  Rfd8 {[%clk 0:01:12]} 22. Rad1 {[%clk 0:01:22]}  Qc3 {[%clk 0:01:10]} 23. Qe2 {[%clk 0:01:03]}  Kh7 {[%clk 0:01:10]} 24. Ne6 {[%clk 0:00:56]}  Rxd1 {[%clk 0:01:04]} 25. Rxd1 {[%clk 0:00:57]}  Qe5 {[%clk 0:01:05]} 26. Qc4 {[%clk 0:00:42]}  Re8 {[%clk 0:00:34]} 27. Nd4 {[%clk 0:00:36]}  Rd8 {[%clk 0:00:19]} 28. Rc1 {[%clk 0:00:30]}  c5 {[%clk 0:00:16]} 29. Nf3 {[%clk 0:00:28]}  Qb2 {[%clk 0:00:15]} 30. Qc2 {[%clk 0:00:22]}  Qxc2 {[%clk 0:00:14]} 31. Rxc2 {[%clk 0:00:23]}  Rd1+ {[%clk 0:00:13]} 32. Kh2 {[%clk 0:00:23]}  b6 {[%clk 0:00:13]} 33. Ne5 {[%clk 0:00:19]}  g5 {[%clk 0:00:11]} 34. f3 {[%clk 0:00:19]}  Nf6 {[%clk 0:00:10]} 35. Kg3 {[%clk 0:00:18]}  Nd5 {[%clk 0:00:09]} 36. Kf2 {[%clk 0:00:17]}  f4 {[%clk 0:00:07]} 37. exf4 {[%clk 0:00:13]}  Nxf4 {[%clk 0:00:06]} 38. Nc4 {[%clk 0:00:10]}  Kg7 {[%clk 0:00:06]} 39. Rd2 {[%clk 0:00:09]}  Ra1 {[%clk 0:00:03]} 40. a4 {[%clk 0:00:09]}  Kf6 {[%clk 0:00:03]} 41. Nd6 {[%clk 0:00:08]}  Ke6 {[%clk 0:00:03]} 42. Ne4 {[%clk 0:00:08]}  Rb1 {[%clk 0:00:03]} 43. Rd6+ {[%clk 0:00:06]}  Ke5 {[%clk 0:00:03]} 44. Rxh6 {[%clk 0:00:06]}  Rb2+ {[%clk 0:00:03]} 45. Kf1 {[%clk 0:00:07]}  Rb1+ {[%clk 0:00:02]} 46. Kf2 {[%clk 0:00:07]}  Rb2+ {[%clk 0:00:03]} 47. Kf1 {[%clk 0:00:07]}  Rxb3 {[%clk 0:00:03]} 48. Nxg5 {[%clk 0:00:07]}  Rb1+ {[%clk 0:00:03]} 49. Kf2 {[%clk 0:00:07]}  Rb2+ {[%clk 0:00:04]} 50. Kf1 {[%clk 0:00:07]}  c4 {[%clk 0:00:04]} 51. Ne4 {[%clk 0:00:07]}  Kd4 {[%clk 0:00:04]} 52. Rc6 {[%clk 0:00:07]}  Ke3 {[%clk 0:00:03]} 53. Kg1 {[%clk 0:00:04]}  Rxg2+ {[%clk 0:00:04]} 54. Kh1 {[%clk 0:00:03]}  Kxf3 {[%clk 0:00:05]} 55. Rxc4 {[%clk 0:00:02]}  Re2 {[%clk 0:00:05]} 56. Ng5+ {[%clk 0:00:02]}  Kg3 {[%clk 0:00:05]} 57. Ne4+ {[%clk 0:00:02]}  Kxh3 {[%clk 0:00:05]} 58. Rc3+ {[%clk 0:00:02]}  Kg4 {[%clk 0:00:04]} 59. Nf6+ {[%clk 0:00:03]}  Kf5 {[%clk 0:00:04]} 60. Ng8 {[%clk 0:00:01]}  Ra2 {[%clk 0:00:03]} 61. Nh6+ {[%clk 0:00:01]}  Kg5 {[%clk 0:00:03]} 62. Nf7+ {[%clk 0:00:02]}  Kg4 {[%clk 0:00:04]} 63. Ne5+ {[%clk 0:00:02]}  Kf5 {[%clk 0:00:04]} 64. Nd7 {[%clk 0:00:02]}  Rxa4 {[%clk 0:00:05]} 65. Nb8 {[%clk 0:00:02]}  Ra2 {[%clk 0:00:04]} 66. Kg1 {[%clk 0:00:02]}  Kg4 {[%clk 0:00:05]} 67. Kf1 {[%clk 0:00:03]}  Ra1+ {[%clk 0:00:04]} 68. Kf2 {[%clk 0:00:02]}  Ra2+ {[%clk 0:00:05]} 69. Ke1 {[%clk 0:00:03]}  Nd5 {[%clk 0:00:05]} 70. Rb3 {[%clk 0:00:03]}  Kf4 {[%clk 0:00:05]} 71. Nc6 {[%clk 0:00:03]}  Ne3 {[%clk 0:00:06]} 72. Rb4+ {[%clk 0:00:02]}  Kf3 {[%clk 0:00:05]} 73. Nd4+ {[%clk 0:00:02]}  Kg3 {[%clk 0:00:05]} 74. Rb1 {[%clk 0:00:02]}  Nc2+ {[%clk 0:00:05]} 75. Kf1 {[%clk 0:00:01]}  Nxd4 {[%clk 0:00:05]} 0-1


[Site "https://www.chess.com"]

[Event "Titled Tuesday Blitz August 23 Late 2022"]
[White "Leitao, Rafael"]
[Black "Kowalski, Igor"]
[WhiteFideId "2101246"]
[BlackFideId "1172468"]
[WhiteElo "2609"]
[BlackElo "2376"]
[Result "0-1"]
[Round "09"]
[TimeControl "180+1"]
[Date "2022.08.23"]
[WhiteClock "0:01:00"]
[BlackClock "0:01:02"]

1. c4 {[%clk 0:03:00]}  g6 {[%clk 0:02:59]} 2. g3 {[%clk 0:02:59]}  Bg7 {[%clk 0:03:00]} 3. Bg2 {[%clk 0:02:59]}  Nf6 {[%clk 0:02:57]} 4. Nf3 {[%clk 0:02:59]}  O-O {[%clk 0:02:57]} 5. O-O {[%clk 0:02:57]}  c6 {[%clk 0:02:58]} 6. d4 {[%clk 0:02:54]}  d5 {[%clk 0:02:58]} 7. cxd5 {[%clk 0:02:51]}  cxd5 {[%clk 0:02:59]} 8. Ne5 {[%clk 0:02:48]}  Ng4 {[%clk 0:02:59]} 9. Nf3 {[%clk 0:02:44]}  Nf6 {[%clk 0:02:58]} 10. Nc3 {[%clk 0:02:43]}  Ne4 {[%clk 0:02:57]} 11. Bf4 {[%clk 0:02:36]}  Bf5 {[%clk 0:02:57]} 12. Nxe4 {[%clk 0:02:11]}  Bxe4 {[%clk 0:02:52]} 13. Ne5 {[%clk 0:02:10]}  f6 {[%clk 0:02:10]} 14. Nd3 {[%clk 0:01:45]}  Bxg2 {[%clk 0:02:10]} 15. Kxg2 {[%clk 0:01:45]}  Nc6 {[%clk 0:02:11]} 16. Nc5 {[%clk 0:01:40]}  e5 {[%clk 0:02:04]} 17. Be3 {[%clk 0:01:16]}  Re8 {[%clk 0:01:04]} 18. dxe5 {[%clk 0:01:04]}  d4 {[%clk 0:01:03]} 19. Qb3+ {[%clk 0:01:00]}  Kh8 {[%clk 0:01:02]} 0-1


[Site "https://www.chess.com"]

[Event "Titled Tuesday Blitz August 23 Late 2022"]
[White "Maksimovic, Bojan"]
[Black "Ladopoulos, Dimitrios"]
[WhiteFideId "14408120"]
[BlackFideId "4239580"]
[WhiteElo "2447"]
[BlackElo "2195"]
[Result "1-0"]
[Round "09"]
[TimeControl "180+1"]
[Date "2022.08.23"]
[WhiteClock "0:00:54"]
[BlackClock "0:00:03"]

1. e4 {[%clk 0:03:00]}  e6 {[%clk 0:02:57]} 2. Qe2 {[%clk 0:02:58]}  e5 {[%clk 0:02:54]} 3. Nf3 {[%clk 0:02:56]}  Nc6 {[%clk 0:02:47]} 4. c3 {[%clk 0:02:56]}  Bc5 {[%clk 0:02:46]} 5. d3 {[%clk 0:02:54]}  a5 {[%clk 0:02:46]} 6. g3 {[%clk 0:02:50]}  d6 {[%clk 0:02:46]} 7. Bg2 {[%clk 0:02:50]}  Nf6 {[%clk 0:02:41]} 8. h3 {[%clk 0:02:49]}  O-O {[%clk 0:02:41]} 9. Nbd2 {[%clk 0:02:48]}  d5 {[%clk 0:02:41]} 10. O-O {[%clk 0:02:48]}  d4 {[%clk 0:02:31]} 11. Nc4 {[%clk 0:02:45]}  Re8 {[%clk 0:02:29]} 12. a3 {[%clk 0:02:11]}  b5 {[%clk 0:02:21]} 13. Ncd2 {[%clk 0:02:07]}  a4 {[%clk 0:02:08]} 14. Rd1 {[%clk 0:02:01]}  Ba6 {[%clk 0:02:07]} 15. Bf1 {[%clk 0:01:48]}  Qd7 {[%clk 0:01:39]} 16. Ne1 {[%clk 0:01:47]}  Rad8 {[%clk 0:01:37]} 17. Nc2 {[%clk 0:01:47]}  Bb6 {[%clk 0:01:36]} 18. Nb4 {[%clk 0:01:47]}  Nxb4 {[%clk 0:01:36]} 19. axb4 {[%clk 0:01:34]}  Bb7 {[%clk 0:01:19]} 20. Nf3 {[%clk 0:01:33]}  dxc3 {[%clk 0:01:16]} 21. Bg5 {[%clk 0:01:24]}  cxb2 {[%clk 0:01:13]} 22. Qxb2 {[%clk 0:01:25]}  Qe7 {[%clk 0:01:03]} 23. Rac1 {[%clk 0:01:18]}  h6 {[%clk 0:00:46]} 24. Be3 {[%clk 0:01:18]}  Bxe3 {[%clk 0:00:45]} 25. fxe3 {[%clk 0:01:19]}  Rc8 {[%clk 0:00:44]} 26. Rc5 {[%clk 0:01:19]}  c6 {[%clk 0:00:37]} 27. Rxe5 {[%clk 0:01:19]}  Qc7 {[%clk 0:00:37]} 28. Kf2 {[%clk 0:01:13]}  Nd7 {[%clk 0:00:35]} 29. Rxe8+ {[%clk 0:01:13]}  Rxe8 {[%clk 0:00:36]} 30. Rc1 {[%clk 0:01:12]}  Qd6 {[%clk 0:00:28]} 31. Qc3 {[%clk 0:01:09]}  Ra8 {[%clk 0:00:05]} 32. Qa3 {[%clk 0:01:09]}  Rc8 {[%clk 0:00:03]} 33. d4 {[%clk 0:01:08]}  Qe6 {[%clk 0:00:03]} 34. e5 {[%clk 0:01:08]}  f6 {[%clk 0:00:03]} 35. exf6 {[%clk 0:01:06]}  Nxf6 {[%clk 0:00:04]} 36. Kg2 {[%clk 0:01:04]}  Nd5 {[%clk 0:00:04]} 37. Ne5 {[%clk 0:01:03]}  Re8 {[%clk 0:00:03]} 38. Re1 {[%clk 0:01:03]}  Kh7 {[%clk 0:00:03]} 39. Bd3+ {[%clk 0:01:03]}  Kg8 {[%clk 0:00:03]} 40. Be4 {[%clk 0:01:04]}  Rf8 {[%clk 0:00:03]} 41. Qb2 {[%clk 0:01:01]}  Bc8 {[%clk 0:00:03]} 42. g4 {[%clk 0:01:00]}  Nf6 {[%clk 0:00:03]} 43. Bf3 {[%clk 0:01:01]}  Nd5 {[%clk 0:00:03]} 44. Qd2 {[%clk 0:00:59]}  Nf6 {[%clk 0:00:03]} 45. Rc1 {[%clk 0:00:59]}  Bd7 {[%clk 0:00:03]} 46. Nxd7 {[%clk 0:00:58]}  Qxd7 {[%clk 0:00:04]} 47. Rxc6 {[%clk 0:00:58]}  a3 {[%clk 0:00:03]} 48. Ra6 {[%clk 0:00:58]}  Qe7 {[%clk 0:00:03]} 49. Rxa3 {[%clk 0:00:58]}  Ne4 {[%clk 0:00:03]} 50. Qa2+ {[%clk 0:00:57]}  Kh8 {[%clk 0:00:03]} 51. Ra8 {[%clk 0:00:55]}  Ng5 {[%clk 0:00:02]} 52. Rxf8+ {[%clk 0:00:54]}  Qxf8 {[%clk 0:00:03]} 53. Qa8 {[%clk 0:00:54]} 1-0


[Site "https://www.chess.com"]

[Event "Titled Tuesday Blitz August 23 Late 2022"]
[White "Martinez Alcantara, Jose Eduardo"]
[Black "Bluebaum, Matthias"]
[WhiteFideId "3805662"]
[BlackFideId "24651516"]
[WhiteElo "2703"]
[BlackElo "2603"]
[Result "1/2-1/2"]
[Round "09"]
[TimeControl "180+1"]
[Date "2022.08.23"]
[WhiteClock "0:00:05"]
[BlackClock "0:00:07"]

1. e4 {[%clk 0:03:00]}  e6 {[%clk 0:03:00]} 2. d4 {[%clk 0:02:58]}  d5 {[%clk 0:03:01]} 3. exd5 {[%clk 0:02:58]}  exd5 {[%clk 0:03:02]} 4. Nf3 {[%clk 0:02:58]}  Nc6 {[%clk 0:02:59]} 5. h3 {[%clk 0:02:48]}  Bf5 {[%clk 0:02:42]} 6. Bb5 {[%clk 0:02:39]}  a6 {[%clk 0:02:39]} 7. Ba4 {[%clk 0:02:39]}  Bd6 {[%clk 0:02:33]} 8. O-O {[%clk 0:02:35]}  Ne7 {[%clk 0:02:33]} 9. Nc3 {[%clk 0:02:07]}  O-O {[%clk 0:02:25]} 10. Re1 {[%clk 0:02:05]}  f6 {[%clk 0:02:20]} 11. Bb3 {[%clk 0:02:05]}  Bb4 {[%clk 0:01:55]} 12. Bd2 {[%clk 0:01:55]}  Kh8 {[%clk 0:01:51]} 13. Ne2 {[%clk 0:01:49]}  Bd6 {[%clk 0:01:48]} 14. Nf4 {[%clk 0:01:36]}  Bxf4 {[%clk 0:01:31]} 15. Bxf4 {[%clk 0:01:36]}  Ng6 {[%clk 0:01:32]} 16. Bh2 {[%clk 0:01:27]}  Na5 {[%clk 0:01:17]} 17. c3 {[%clk 0:01:19]}  Qd7 {[%clk 0:01:10]} 18. Nd2 {[%clk 0:01:17]}  Nxb3 {[%clk 0:01:04]} 19. Qxb3 {[%clk 0:01:14]}  c6 {[%clk 0:01:02]} 20. Re3 {[%clk 0:01:05]}  Rae8 {[%clk 0:00:55]} 21. Rae1 {[%clk 0:01:05]}  h5 {[%clk 0:00:51]} 22. Nf1 {[%clk 0:00:54]}  Rxe3 {[%clk 0:00:43]} 23. Rxe3 {[%clk 0:00:54]}  h4 {[%clk 0:00:37]} 24. Qd1 {[%clk 0:00:52]}  Kg8 {[%clk 0:00:36]} 25. Qh5 {[%clk 0:00:48]}  Bb1 {[%clk 0:00:33]} 26. Re1 {[%clk 0:00:46]}  Qf5 {[%clk 0:00:31]} 27. Qxf5 {[%clk 0:00:29]}  Bxf5 {[%clk 0:00:32]} 28. Ne3 {[%clk 0:00:29]}  Re8 {[%clk 0:00:31]} 29. f3 {[%clk 0:00:28]}  Bd7 {[%clk 0:00:26]} 30. Kf2 {[%clk 0:00:29]}  Kf7 {[%clk 0:00:27]} 31. c4 {[%clk 0:00:27]}  dxc4 {[%clk 0:00:25]} 32. Nxc4 {[%clk 0:00:27]}  Rxe1 {[%clk 0:00:25]} 33. Kxe1 {[%clk 0:00:28]}  Be6 {[%clk 0:00:20]} 34. Nd6+ {[%clk 0:00:26]}  Ke7 {[%clk 0:00:21]} 35. Nxb7 {[%clk 0:00:27]}  Bxa2 {[%clk 0:00:21]} 36. Bd6+ {[%clk 0:00:22]}  Ke8 {[%clk 0:00:18]} 37. Bb8 {[%clk 0:00:17]}  Bd5 {[%clk 0:00:14]} 38. Nc5 {[%clk 0:00:14]}  Bc4 {[%clk 0:00:15]} 39. b3 {[%clk 0:00:14]}  Bb5 {[%clk 0:00:14]} 40. Kf2 {[%clk 0:00:14]}  Nf8 {[%clk 0:00:14]} 41. Ne4 {[%clk 0:00:12]}  Bd3 {[%clk 0:00:12]} 42. Nc5 {[%clk 0:00:11]}  Bb5 {[%clk 0:00:12]} 43. Ne4 {[%clk 0:00:10]}  Bd3 {[%clk 0:00:12]} 44. Bh2 {[%clk 0:00:08]}  Ne6 {[%clk 0:00:10]} 45. Ke3 {[%clk 0:00:08]}  Bf1 {[%clk 0:00:11]} 46. Nd6+ {[%clk 0:00:09]}  Kd7 {[%clk 0:00:10]} 47. Kf2 {[%clk 0:00:09]}  Bd3 {[%clk 0:00:09]} 48. Ke3 {[%clk 0:00:09]}  Bf1 {[%clk 0:00:09]} 49. Kf2 {[%clk 0:00:07]}  Bd3 {[%clk 0:00:09]} 50. Ke3 {[%clk 0:00:05]}  Bf1 {[%clk 0:00:07]} 1/2-1/2


[Site "https://www.chess.com"]